bitfinex/quotes_ETHUSD_20220218
["timestamp","ask_amount","ask_price","bid_price","bid_amount"]
[1645160914699,0.0051872,2889.4,2888.7,0.86541]
[1645160914896,0.0051872,2889.4,2888.4,2.18249724]
[1645160915296,0.8706672,2889.4,2888.4,2.18249724]
[1645160916097,0.00321675,2889.0,2888.5,0.86552]
[1645160916695,0.00840395,2889.0,2888.5,0.86552]
[1645160916897,0.00840395,2889.0,2888.4,1.1594]
[1645160917102,0.86557,2889.2,2888.4,1.1594]
[1645160917400,0.00321684,2888.9,2888.4,1.1594]
[1645160918141,0.00840404,2888.9,2888.3,2.25083677]
[1645160918337,0.0051872,2888.9,2888.3,2.25083677]
[1645160918537,0.00310832,2888.8,2888.3,2.25083677]
[1645160919441,0.0051872,2888.9,2888.3,2.25083677]
[1645160919839,0.00310837,2888.7,2888.3,2.25083677]
[1645160920640,0.0051872,2888.9,2888.3,2.25083677]
[1645160920943,0.00310839,2888.6,2888.4,1.47573805]
[1645160921140,0.00310839,2888.6,2888.3,2.25083677]
[1645160921740,0.00310839,2888.6,2888.4,1.47575545]
[1645160921994,0.0051872,2888.9,2888.3,2.25083677]
[1645160922192,0.00300707,2888.6,2888.4,1.47575948]
[1645160922396,0.00300707,2888.6,2888.3,0.51987677]
[1645160922897,0.00300707,2888.6,2888.4,1.47577868]
[1645160923097,0.8708372,2889.0,2888.4,1.47577868]
[1645160923292,0.00300707,2888.6,2888.4,1.47577868]
[1645160924098,0.00300707,2888.6,2888.4,2.34134868]
[1645160924295,0.0051872,2889.0,2888.5,1.47577868]
[1645160924496,0.00300705,2888.6,2888.5,1.47577868]
[1645160925100,0.00300705,2888.6,2888.4,1.47577868]
[1645160925496,0.8707972,2889.0,2888.4,1.47577868]
[1645160925744,0.00301389,2888.6,2888.4,1.47577868]
[1645160926751,0.0051872,2888.8,2888.4,2.34135868]
[1645160926949,0.00301389,2888.6,2888.5,1.47577868]
[1645160927951,0.86556,2889.0,2888.5,1.47577868]
[1645160927952,0.0051872,2888.9,2888.5,1.47577868]
[1645160928150,0.00301387,2888.7,2888.5,2.34132868]
[1645160928351,0.00301387,2888.7,2888.6,1.47577868]
[1645160929158,0.0051872,2888.9,2888.6,1.47575955]
[1645160929393,0.00301335,2888.8,2888.6,0.86553]
[1645160929589,0.00301335,2888.8,2888.3,0.51987677]
[1645160929790,0.00301335,2888.8,2888.4,1.4757645]
[1645160930194,0.86559,2889.0,2888.4,1.4757645]
[1645160930393,0.86559,2889.0,2888.3,0.51987677]
[1645160930394,5.2365972,2888.9,2888.3,0.51987677]
[1645160930596,0.00301338,2888.7,2888.3,0.51987677]
[1645160930994,1.03155051,2888.6,2888.3,0.51987677]
[1645160931195,1.03673771,2888.6,2888.3,0.51987677]
[1645160931397,1.90257771,2888.6,2888.3,0.51987677]
[1645160931595,0.86585,2888.4,2888.3,0.51987677]
[1645160932600,0.86578,2888.4,2888.3,0.51987677]
[1645160932805,0.86586,2888.5,2888.3,0.51987677]
[1645160933000,0.86887353,2888.5,2888.3,0.51987677]
[1645160933641,0.86578,2888.4,2888.3,0.51987677]
[1645160935642,0.86578,2888.4,2887.5,1.50538487]
[1645160935843,0.86598,2888.1,2887.5,0.98351026]
[1645160936893,0.86604,2888.0,2887.5,0.98351026]
[1645160937094,0.86601,2887.9,2887.5,0.98351026]
[1645160937898,2.59803,2887.9,2887.5,0.98351026]
[1645160938096,0.86611,2887.8,2887.5,0.98351026]
[1645160939698,1.73222,2887.8,2887.5,0.98351026]
[1645160939900,2.59829,2887.8,2887.5,0.98351026]
[1645160940096,0.95780823,2887.6,2887.5,0.98351026]
[1645160952307,0.93871985,2887.6,2887.5,0.98351026]
[1645160952508,0.86607,2887.8,2887.5,0.98351026]
[1645160952705,0.86591,2887.9,2887.5,0.98351026]
[1645160953702,0.93699456,2887.7,2887.5,0.98351026]
[1645160959792,0.93699456,2887.7,2887.6,1.47619071]
[1645160960695,0.93699456,2887.7,2887.5,0.98351026]
[1645160963243,0.93699456,2887.7,2887.6,1.47619092]
[1645160966052,0.93699456,2887.7,2887.5,0.98351026]
[1645160966250,0.93699456,2887.7,2887.6,1.47622029]
[1645160970661,0.93699456,2887.7,2887.5,0.98351026]
[1645160970859,1.80317456,2887.7,2887.5,0.98351026]
[1645160971059,0.86624,2887.6,2887.5,0.98351026]
[1645160974796,0.86624,2887.6,2887.5,0.98259862]
[1645160975396,0.86624,2887.6,2886.8,1.1276]
[1645160975602,0.86624,2887.6,2886.7,1.5573]
[1645160975603,0.86627,2887.2,2886.9,1.47635775]
[1645160975800,0.86627,2887.2,2887.0,1.47635775]
[1645160975998,0.86627,2887.2,2886.6,0.53166133]
[1645160975999,0.86627,2887.2,2886.6,0.52811926]
[1645160976197,0.86627,2887.2,2886.7,1.47654987]
[1645160976401,0.86627,2887.2,2886.8,1.47654987]
[1645160976599,0.86627,2887.2,2886.9,1.47654987]
[1645160976797,1.73377148,2887.1,2886.5,0.00312497]
[1645160977000,0.86637,2887.0,2886.5,0.00666704]
[1645160977200,0.86637,2887.0,2886.6,1.47660437]
[1645160977402,0.86637,2887.0,2886.7,1.47660437]
[1645160977600,0.86637,2887.0,2886.8,1.47660437]
[1645160977802,0.86637,2887.0,2886.9,1.47660437]
[1645160978001,2.59909,2887.0,2886.9,1.47660437]
[1645160978248,0.86635,2886.9,2886.5,0.00312478]
[1645160978654,0.86635,2886.9,2886.3,1.47662657]
[1645160978655,1.0727346,2886.5,2886.4,0.00354207]
[1645160978852,0.86635,2886.7,2886.6,0.50234082]
[1645160979055,2.85849503,2886.7,2886.6,0.50234082]
[1645160979250,2.85849503,2886.7,2886.6,1.97896739]
[1645160980657,3.72484503,2886.7,2886.6,1.97896739]
[1645160980849,1.99215503,2886.7,2886.6,1.97896739]
[1645160981050,1.12580503,2886.7,2886.6,1.97896739]
[1645160985956,1.12580503,2886.7,2886.1,0.00354207]
[1645160985957,0.86646,2886.5,2886.1,0.00354207]
[1645160986249,1.11616905,2886.3,2886.1,0.00354207]
[1645160986449,1.11616905,2886.3,2885.8,0.00354207]
[1645160986647,1.11616905,2886.3,2885.6,0.00354207]
[1645160987051,1.98269905,2886.3,2885.6,0.00354207]
[1645160987250,0.86662,2886.2,2885.8,0.00282776]
[1645160987449,0.86667,2886.1,2885.8,0.00282776]
[1645160988251,0.86667,2886.1,2885.1,0.00354207]
[1645160988252,1.73334,2886.1,2885.1,0.00354207]
[1645160988451,0.86669,2885.7,2885.1,0.00354207]
[1645160988851,0.86669,2885.7,2884.8,0.66388933]
[1645160989151,1.15895253,2885.4,2884.8,1.53107148]
[1645160989401,0.86669,2885.3,2884.8,3.89466814]
[1645160989694,1.73338,2885.3,2885.0,0.00282817]
[1645160989896,0.86669,2885.3,2885.0,0.00282817]
[1645160990598,0.86669,2885.3,2884.8,0.00354207]
[1645160990800,0.86682,2885.2,2885.0,0.00282765]
[1645160990997,1.73363,2885.2,2885.0,0.00282765]
[1645160991800,1.73363,2885.2,2884.8,0.00354207]
[1645160992204,2.60044,2885.2,2885.0,0.00282496]
[1645160992811,0.86685,2885.0,2884.5,2.36391864]
[1645160993153,0.86685,2885.0,2884.8,0.00354214]
[1645160993154,0.499,2884.9,2884.8,0.00354214]
[1645160993352,0.499,2884.9,2884.3,0.00354214]
[1645160993554,3.1006,2884.9,2884.1,0.00354214]
[1645160993753,1.18990375,2884.8,2884.1,0.00354214]
[1645160993954,4.54051,2884.7,2884.1,0.00354214]
[1645160994155,0.86725,2884.6,2883.5,0.51441942]
[1645160994353,1.36625,2884.6,2883.6,0.00354214]
[1645160994558,2.15769,2884.5,2883.6,0.00354214]
[1645160994754,2.65669,2884.5,2883.6,0.00354214]
[1645160994953,0.97536951,2883.7,2883.6,0.00354214]
[1645160995155,1.73437,2884.0,2883.6,0.00354214]
[1645160996456,1.73436,2884.2,2883.6,0.00354214]
[1645160996457,0.86718,2883.8,2883.6,0.00354214]
[1645160996896,0.86718,2883.8,2883.7,0.00301211]
[1645160997703,1.84797651,2883.8,2883.7,0.00301211]
[1645160997899,1.84797651,2883.8,2883.6,0.00354214]
[1645160998099,1.84797651,2883.8,2883.6,0.00654761]
[1645160998902,0.27156895,2883.8,2883.6,0.00654761]
[1645160999101,0.27156895,2883.8,2883.6,0.00354214]
[1645160999301,0.27156895,2883.8,2883.6,0.00654764]
[1645161000304,1.13874895,2883.8,2883.6,0.00354214]
[1645161000504,1.13874895,2883.8,2883.6,0.00654764]
[1645161000748,0.86718,2883.8,2883.6,0.00654764]
[1645161000951,1.73442,2884.2,2883.6,0.00654764]
[1645161000952,1.7342,2884.4,2883.6,0.00654764]
[1645161001249,4.79028,2884.5,2883.6,0.00654764]
[1645161001446,0.01546505,2883.8,2883.6,0.00354214]
[1645161002050,0.01546505,2883.8,2883.5,1.10106052]
[1645161002255,0.01546505,2883.8,2883.6,0.00354214]
[1645161002851,0.01546505,2883.8,2883.6,0.00300594]
[1645161003749,0.01546505,2883.8,2883.2,0.00354214]
[1645161003955,0.86723,2883.7,2883.2,0.00354214]
[1645161004151,1.73448,2883.7,2883.6,0.00300594]
[1645161004999,0.86723,2883.7,2883.2,0.00354214]
[1645161005198,0.86723,2883.7,2883.5,0.00300595]
[1645161005600,1.04174178,2883.8,2883.5,0.00300595]
[1645161006199,1.04174178,2883.8,2883.4,0.00354214]
[1645161006600,1.90893178,2883.8,2883.5,0.00300595]
[1645161007508,1.90893178,2883.8,2883.3,0.00354214]
[1645161007804,1.90893178,2883.8,2883.5,0.00300595]
[1645161008151,0.01546505,2883.8,2883.5,0.00300595]
[1645161008546,0.01546505,2883.8,2883.5,0.00654809]
[1645161008747,0.01546505,2883.8,2883.5,0.00354214]
[1645161008946,0.01546505,2883.8,2883.5,0.00300595]
[1645161009547,0.01546505,2883.8,2883.5,0.00654809]
[1645161009748,0.01546505,2883.8,2883.5,0.00354214]
[1645161009948,0.01546505,2883.8,2883.2,1.48132115]
[1645161010151,0.01546505,2883.8,2883.5,0.00300595]
[1645161010550,0.88264505,2883.8,2883.5,0.00654809]
[1645161010947,0.88264505,2883.8,2883.2,0.00354214]
[1645161011348,0.88264505,2883.8,2883.5,0.00300595]
[1645161011549,0.86718,2883.8,2883.5,0.00300595]
[1645161012300,1.00512727,2883.9,2883.3,0.00354214]
[1645161012301,0.86724,2883.7,2883.3,0.00354214]
[1645161012504,0.86724,2883.7,2883.5,0.00300595]
[1645161013502,0.86724,2883.7,2883.3,0.00354214]
[1645161013700,1.00512727,2883.9,2883.5,0.00300598]
[1645161014101,1.00512727,2883.9,2883.5,0.00654812]
[1645161014502,1.00512727,2883.9,2883.5,0.00300598]
[1645161014703,1.00512727,2883.9,2883.4,1.47769992]
[1645161014904,1.00512727,2883.9,2883.6,0.00300592]
[1645161015950,1.00512727,2883.9,2883.3,1.48125254]
[1645161016148,0.86717,2883.8,2883.6,0.0030059]
[1645161017159,0.86718,2883.7,2883.4,0.00354214]
[1645161017356,1.00512727,2883.9,2883.6,0.00300592]
[1645161018157,1.00512727,2883.9,2883.6,0.00654806]
[1645161018356,0.86705,2884.2,2883.6,0.00354214]
[1645161018555,1.9601,2884.3,2883.6,0.0030059]
[1645161018956,0.38391077,2884.3,2883.6,0.00654804]
[1645161019156,2.9997,2884.4,2883.7,2.34468717]
[1645161019432,0.1733,2884.6,2883.8,4.97760323]
[1645161019631,1.2477,2885.6,2883.9,1.48060896]
[1645161019632,2.886,2885.5,2883.9,1.48060896]
[1645161019833,7.3507,2885.5,2884.0,0.00354214]
[1645161020028,7.3507,2885.5,2884.0,4.98114537]
[1645161020227,7.3507,2885.5,2884.1,1.48114537]
[1645161020430,0.88850133,2884.9,2884.2,0.00354214]
[1645161020631,2.62226133,2884.9,2884.2,1.73709214]
[1645161020827,2.62226133,2884.9,2884.3,1.48114537]
[1645161021028,2.62226133,2884.9,2884.7,0.00300532]
[1645161021826,2.62226133,2884.9,2884.5,0.00354214]
[1645161022030,0.86685,2884.8,2884.5,0.00354214]
[1645161022232,0.86685,2884.8,2884.7,0.00300532]
[1645161022633,0.88850133,2884.9,2884.7,0.00300532]
[1645161023032,0.88850133,2884.9,2884.4,0.00354214]
[1645161023252,0.88850133,2884.9,2884.7,0.00300529]
[1645161024051,1.75535133,2884.9,2884.7,0.00300529]
[1645161024251,2.62218133,2884.9,2884.3,1.48089941]
[1645161024454,1.75535133,2884.9,2884.7,0.00300529]
[1645161024653,3.48916133,2884.9,2884.7,0.00300529]
[1645161025252,4.35608133,2884.9,2884.7,0.00300529]
[1645161025453,4.35608133,2884.9,2884.1,0.87046214]
[1645161025652,4.35608133,2884.9,2884.7,0.00354214]
[1645161025855,4.35608133,2884.9,2884.7,0.00300529]
[1645161026451,3.48916133,2884.9,2884.7,0.00300529]
[1645161026656,3.48916133,2884.9,2884.5,0.00354214]
[1645161026657,0.88850133,2884.9,2884.8,0.02692722]
[1645161026903,1.73375,2885.3,2884.8,0.02692722]
[1645161026904,1.73367,2885.2,2884.8,0.02692722]
[1645161027309,1.9628,2885.4,2884.8,0.02692722]
[1645161027511,2.82957,2885.4,2884.8,0.02692722]
[1645161027707,0.86677,2885.4,2884.8,0.02692722]
[1645161027907,0.86677,2885.4,2884.9,1.47725773]
[1645161028108,0.86677,2885.4,2885.0,0.00354214]
[1645161028109,0.86675,2885.2,2885.0,0.00354214]
[1645161028511,0.86675,2885.2,2884.9,0.00300523]
[1645161028512,1.73357,2885.2,2884.9,0.00300523]
[1645161028710,0.86682,2885.2,2884.9,1.48026864]
[1645161028909,0.86682,2885.2,2885.0,0.00354214]
[1645161029309,0.86682,2885.2,2884.9,1.48026657]
[1645161029510,0.86682,2885.2,2885.0,0.00354214]
[1645161029711,0.86682,2885.2,2885.0,1.4808035]
[1645161029910,0.8668,2885.1,2885.0,1.47726136]
[1645161030111,0.8668,2885.1,2884.9,1.48026657]
[1645161030312,0.8668,2885.1,2885.0,1.47726136]
[1645161030512,0.8668,2885.1,2884.9,1.48026656]
[1645161030752,0.8668,2885.1,2884.9,1.4838087]
[1645161030954,0.8668,2885.1,2885.0,1.47726136]
[1645161032058,0.8668,2885.1,2884.9,0.0030052]
[1645161032458,0.8668,2885.1,2884.9,1.48026656]
[1645161032659,1.73357,2885.2,2885.0,1.47726136]
[1645161032859,1.73357,2885.2,2884.9,0.00300518]
[1645161033160,0.86675,2885.2,2884.9,0.00300518]
[1645161033663,0.86675,2885.2,2884.9,1.48026654]
[1645161033858,0.86675,2885.2,2884.9,1.47726136]
[1645161034060,0.86675,2885.2,2885.0,1.47726136]
[1645161034259,0.86675,2885.2,2885.1,1.47726136]
[1645161034501,1.73352,2885.2,2884.9,1.48026657]
[1645161034704,0.86686,2885.1,2885.0,1.47726136]
[1645161035101,0.86675,2885.2,2884.6,1.47726136]
[1645161035300,0.86675,2885.2,2884.9,0.00300521]
[1645161035700,0.86686,2885.1,2884.9,1.48380871]
[1645161035905,0.86686,2885.1,2885.0,1.47726136]
[1645161035906,4.21926543,2885.1,2885.0,1.47726136]
[1645161036101,4.0,2885.0,2884.5,0.00354214]
[1645161036307,4.0,2885.0,2884.2,0.00354214]
[1645161036501,4.0,2885.0,2884.0,1.48106394]
[1645161036502,0.25,2884.9,2884.0,1.48106394]
[1645161036703,0.86702,2884.6,2884.1,1.4775218]
[1645161036904,0.25,2884.9,2883.8,0.6638894]
[1645161036905,0.86697,2884.5,2884.2,1.48106394]
[1645161037108,0.84564561,2884.6,2884.3,1.4775218]
[1645161037306,0.84564561,2884.6,2884.4,1.48106394]
[1645161037510,0.84564561,2884.6,2884.5,1.4775218]
[1645161037707,1.73382,2884.9,2884.5,1.48106394]
[1645161037905,1.73382,2884.9,2884.6,1.48106394]
[1645161038180,0.86696,2884.8,2884.7,1.4775218]
[1645161038579,0.86696,2884.8,2884.7,1.48106394]
[1645161038778,0.86696,2884.8,2884.7,0.00354214]
[1645161038981,1.9083683,2884.8,2884.2,1.48106394]
[1645161039182,1.9082783,2884.8,2884.3,0.00354214]
[1645161039381,2.7751983,2884.8,2884.3,1.48106394]
[1645161039580,2.7751983,2884.8,2884.4,1.4775218]
[1645161039882,2.7751983,2884.8,2884.5,1.48106394]
[1645161040081,2.7751983,2884.8,2884.6,1.4775218]
[1645161040280,2.7751983,2884.8,2884.7,1.4775218]
[1645161040483,0.33239129,2884.8,2884.7,1.48106394]
[1645161040881,0.33239129,2884.8,2884.7,0.00354214]
[1645161041082,0.33239129,2884.8,2884.6,1.4775218]
[1645161041286,0.33239129,2884.8,2884.7,1.4775218]
[1645161041486,0.33239129,2884.8,2884.7,1.50802954]
[1645161041898,1.73382,2884.9,2884.7,1.50802954]
[1645161042114,1.73382,2884.9,2884.8,1.4775218]
[1645161045305,2.60072,2884.9,2884.8,1.4775218]
[1645161046557,2.60072,2884.9,2884.8,1.50444902]
[1645161048764,2.90072,2884.9,2884.8,1.50444902]
[1645161049807,2.60072,2884.9,2884.8,1.50444902]
[1645161051809,1.73382,2884.9,2884.8,1.50444902]
[1645161052612,1.72382,2884.9,2884.8,1.50444902]
[1645161053652,2.59072,2884.9,2884.8,1.50444902]
[1645161054853,2.89072,2884.9,2884.8,1.50444902]
[1645161055053,2.02382,2884.9,2884.8,1.50444902]
[1645161055256,0.3,2884.9,2884.8,1.50444902]
[1645161055756,1.16683,2885.0,2884.8,1.50444902]
[1645161055955,1.16683,2885.0,2884.9,1.4775218]
[1645161056156,0.3,2885.0,2884.9,1.4775218]
[1645161057617,1.16687,2885.0,2884.9,1.4775218]
[1645161058216,0.3,2885.0,2884.9,1.4775218]
[1645161058818,2.60051,2885.1,2884.9,1.4775218]
[1645161060017,1.73368,2885.1,2884.9,1.4775218]
[1645161061056,0.86687,2885.0,2884.9,1.4775218]
[1645161061554,0.86687,2885.0,2884.9,1.50441065]
[1645161064157,0.86687,2885.0,2884.9,0.02688885]
[1645161064608,0.86687,2885.0,2884.9,1.50451443]
[1645161067711,0.86687,2885.0,2884.9,1.504487]
[1645161069557,0.86687,2885.0,2884.9,0.02688885]
[1645161071559,0.86687,2885.0,2884.8,0.00310314]
[1645161071761,1.73384,2885.0,2884.8,0.00310314]
[1645161072017,0.86693,2884.9,2884.8,0.00310314]
[1645161072419,0.86693,2884.9,2884.3,1.47760344]
[1645161072621,1.14907402,2884.5,2884.3,1.47760344]
[1645161072821,0.86694,2884.6,2884.5,0.42703102]
[1645161073216,0.86694,2884.6,2884.5,1.90463446]
[1645161074418,1.73393,2884.6,2884.5,1.90463446]
[1645161076062,0.86694,2884.6,2884.5,1.90463446]
[1645161076768,0.86694,2884.6,2884.5,1.93167683]
[1645161077368,1.73394,2884.6,2884.5,1.93167683]
[1645161077772,2.33394,2884.6,2884.5,1.93167683]
[1645161077974,2.33394,2884.6,2884.5,0.45407339]
[1645161078172,2.33394,2884.6,2884.5,0.03406815]
[1645161078372,6.93871328,2884.6,2884.5,0.03406815]
[1645161078571,28.30667108,2884.6,2884.5,0.03406815]
[1645161078770,29.30667108,2884.6,2884.5,0.03406815]
[1645161078971,25.68,2884.5,2883.5,0.00354214]
[1645161079173,1.73476,2884.2,2883.5,1.48164144]
[1645161079407,0.749,2884.1,2883.6,0.00354214]
[1645161079610,3.37497261,2884.0,2883.6,0.00354214]
[1645161079808,0.799,2884.0,2883.6,0.00354214]
[1645161080009,0.96503936,2883.9,2883.6,0.00354214]
[1645161080210,0.8674,2883.8,2883.6,0.00354214]
[1645161080411,0.8674,2883.8,2883.4,1.48164144]
[1645161080713,0.8674,2883.8,2883.5,1.4780993]
[1645161080714,0.3,2883.7,2883.5,1.4780993]
[1645161080909,0.3,2883.7,2883.6,1.48164144]
[1645161081111,0.3,2883.7,2883.6,1.4780993]
[1645161081310,1.16734,2883.7,2883.5,0.00301375]
[1645161081711,1.16734,2883.7,2883.5,1.48111305]
[1645161081912,1.16734,2883.7,2883.6,1.4780993]
[1645161082113,0.3,2883.7,2883.6,1.4780993]
[1645161082315,1.16738,2883.7,2883.5,0.00301375]
[1645161083161,1.16738,2883.7,2883.5,0.00354214]
[1645161083364,2.03462,2883.7,2883.5,1.48465519]
[1645161083560,2.03462,2883.7,2883.6,1.4780993]
[1645161083759,0.86738,2883.7,2883.6,1.4780993]
[1645161083960,1.73466,2883.7,2883.6,1.4780993]
[1645161084161,0.86738,2883.7,2883.5,0.00301375]
[1645161084360,1.73463,2883.7,2883.4,0.00354214]
[1645161084562,0.86728,2883.6,2883.4,0.00354214]
[1645161084764,0.86728,2883.6,2883.5,0.00301145]
[1645161085365,0.86728,2883.6,2883.5,1.48111075]
[1645161085567,0.86728,2883.6,2883.5,0.00354214]
[1645161085770,0.86728,2883.6,2883.0,0.66034726]
[1645161085771,0.86728,2883.6,2883.4,0.0030115]
[1645161085972,0.86728,2883.6,2883.4,1.4811108]
[1645161086168,0.86728,2883.6,2883.5,1.4780993]
[1645161086372,0.86728,2883.6,2883.5,1.48164144]
[1645161087113,0.86728,2883.6,2883.5,1.4780993]
[1645161087313,0.86728,2883.6,2883.0,2.1384264]
[1645161087515,0.86728,2883.6,2883.1,1.4780993]
[1645161087714,1.73457,2883.6,2883.2,1.4780993]
[1645161087912,0.8673,2883.5,2883.3,1.4780993]
[1645161088110,0.8673,2883.5,2882.9,4.3673]
[1645161088111,0.8673,2883.5,2883.4,1.4780993]
[1645161088311,0.8673,2883.5,2883.0,1.4780993]
[1645161088517,0.8673,2883.5,2883.1,1.4780993]
[1645161088712,0.86733,2883.4,2883.2,1.4780993]
[1645161088911,0.86733,2883.4,2883.3,1.4780993]
[1645161089113,0.86736,2883.3,2882.8,0.50706348]
[1645161089312,0.86736,2883.3,2882.9,1.47810596]
[1645161090314,1.73473,2883.3,2882.9,1.47810596]
[1645161090764,0.86731,2883.5,2882.9,1.47810596]
[1645161091170,0.86731,2883.5,2882.9,4.97810596]
[1645161091367,0.86731,2883.5,2883.0,1.47810596]
[1645161091764,0.86731,2883.5,2883.1,0.00320874]
[1645161092567,1.7346,2883.8,2883.1,0.00320874]
[1645161092769,3.4183,2883.9,2883.0,1.47810596]
[1645161092967,3.4183,2883.9,2883.2,0.00320868]
[1645161094067,4.28549,2883.9,2883.1,0.94276493]
[1645161094267,4.28549,2883.9,2883.3,0.00320871]
[1645161094268,0.86721,2883.8,2883.3,0.00320871]
[1645161094914,4.28549,2883.9,2883.3,4.98131467]
[1645161095115,0.25,2884.1,2883.4,1.47810596]
[1645161095318,0.25,2884.1,2883.9,1.57643669]
[1645161095513,0.25,2884.1,2884.0,1.47810596]
[1645161097919,0.867,2884.3,2884.0,1.47810596]
[1645161098460,3.4434,2884.6,2884.0,1.47810596]
[1645161098659,0.0160371,2884.7,2884.0,1.47810596]
[1645161098860,0.86696,2884.6,2884.0,1.47810596]
[1645161099462,0.86696,2884.6,2884.0,2.34507596]
[1645161099661,1.73392,2884.6,2884.1,1.47810596]
[1645161099861,1.73392,2884.6,2884.2,1.47810596]
[1645161100061,1.73392,2884.6,2883.9,1.57643669]
[1645161100062,1.73392,2884.6,2884.3,1.47810596]
[1645161100262,1.73392,2884.6,2883.9,1.57643669]
[1645161100263,0.86707,2884.5,2883.9,1.57643669]
[1645161100562,0.86708,2884.4,2884.0,1.47775289]
[1645161100760,2.60129,2884.4,2884.0,1.47775289]
[1645161100961,0.86711,2884.3,2884.0,1.47775289]
[1645161101566,0.86713,2884.2,2884.0,1.47775289]
[1645161102319,1.7343,2884.2,2884.0,1.47775289]
[1645161102917,1.06664341,2884.1,2884.0,1.47775289]
[1645161105116,1.06664341,2884.1,2883.9,1.57643669]
[1645161105316,1.06664341,2884.1,2884.0,1.47793644]
[1645161105317,2.80094341,2884.1,2884.0,1.47793644]
[1645161105660,1.06664341,2884.1,2884.0,1.47793644]
[1645161106063,0.86717,2884.2,2884.0,1.47793644]
[1645161106463,1.73431,2884.2,2884.0,1.47793644]
[1645161107767,1.73431,2884.2,2884.0,1.47650987]
[1645161108170,2.60145,2884.2,2883.9,1.57643669]
[1645161108369,0.86732,2884.1,2883.9,1.57643669]
[1645161108569,1.73461,2884.1,2883.9,1.57643669]
[1645161108770,22.71361,2884.1,2883.9,1.57643669]
[1645161108972,0.3,2884.0,2883.9,1.57643669]
[1645161109169,2.20835004,2884.0,2883.9,1.57643669]
[1645161109414,3.20835004,2884.0,2883.9,1.57643669]
[1645161109915,1.90835004,2884.0,2883.9,1.57643669]
[1645161110313,1.90829004,2884.0,2883.9,1.57643669]
[1645161110713,1.04102004,2884.0,2883.9,1.57643669]
[1645161113867,0.86729,2884.1,2883.9,1.57643669]
[1645161114466,0.86702,2884.2,2883.9,1.57643669]
[1645161114670,0.25,2884.3,2883.9,1.57643669]
[1645161114872,0.86706,2884.2,2883.9,1.57643669]
[1645161115069,2.0213258,2884.2,2883.9,1.57643669]
[1645161115469,1.98418,2884.3,2883.9,1.57643669]
[1645161115668,0.25,2884.3,2883.9,1.57643669]
[1645161116466,0.85544717,2884.2,2883.9,1.57643669]
[1645161116768,0.85544717,2884.2,2883.9,2.44344669]
[1645161117224,0.25,2884.3,2883.9,1.57643669]
[1645161118618,1.09011783,2884.3,2883.9,1.57643669]
[1645161119218,1.95715783,2884.3,2883.9,1.57643669]
[1645161125911,1.09011783,2884.3,2883.9,2.44344669]
[1645161126112,0.25,2884.3,2883.9,2.44344669]
[1645161126411,0.25,2884.3,2883.9,1.57643669]
[1645161127918,0.25,2884.3,2884.0,1.47786099]
[1645161129575,1.11703,2884.3,2884.0,1.47786099]
[1645161131078,0.25,2884.3,2884.0,1.47786099]
[1645161131679,1.84961897,2884.4,2884.0,1.47786099]
[1645161131913,0.98261897,2884.4,2884.0,1.47786099]
[1645161132521,0.86703,2884.3,2884.0,1.47786099]
[1645161132926,0.98261897,2884.4,2884.0,1.47786099]
[1645161132927,0.98261897,2884.4,2884.0,2.34485099]
[1645161133119,1.73415,2884.6,2884.1,1.47786099]
[1645161133317,1.73415,2884.6,2883.9,1.57643669]
[1645161133318,1.73415,2884.6,2884.2,1.47786099]
[1645161133519,0.867,2884.4,2884.3,1.47786099]
[1645161133920,0.867,2884.4,2884.0,1.47786099]
[1645161134720,0.86705,2884.3,2884.0,1.47786099]
[1645161136064,1.83406,2884.8,2884.0,1.47786099]
[1645161136261,0.867,2884.4,2884.0,1.47786099]
[1645161137871,0.88978748,2884.7,2884.0,2.34486099]
[1645161137872,0.0029889,2884.7,2884.0,2.34486099]
[1645161138075,0.0029889,2884.7,2884.4,1.5773121]
[1645161138269,0.0029889,2884.7,2884.5,1.47786099]
[1645161138668,0.1,2884.8,2884.5,1.47786099]
[1645161138870,0.00298908,2884.7,2884.5,1.47786099]
[1645161139721,0.1,2884.8,2884.5,2.34470099]
[1645161139921,0.1,2884.8,2884.6,1.47786099]
[1645161140120,0.00298909,2884.7,2884.6,1.47786099]
[1645161140521,0.00298909,2884.7,2884.5,1.47786099]
[1645161140922,0.1,2884.8,2884.5,1.47786099]
[1645161140923,0.1,2884.8,2884.6,0.86679]
[1645161141122,0.1,2884.8,2884.7,1.47786099]
[1645161141324,0.00290489,2884.7,2884.4,1.5773121]
[1645161141522,0.00290489,2884.7,2884.5,1.47755768]
[1645161141927,0.00290489,2884.7,2884.5,2.34441768]
[1645161142126,0.1,2884.8,2884.6,1.47755768]
[1645161142526,0.00290489,2884.7,2884.6,1.47755768]
[1645161142927,0.00290489,2884.7,2884.5,1.47755768]
[1645161143163,0.00142869,2884.6,2884.4,1.5773121]
[1645161143366,0.00142869,2884.6,2884.5,1.47759155]
[1645161145165,0.01119988,2885.1,2884.6,5.5]
[1645161145367,0.01119988,2885.1,2884.7,1.47759155]
[1645161145564,1.2462,2886.3,2884.9,5.5]
[1645161145764,0.0051872,2886.1,2885.0,1.47759155]
[1645161145976,0.0051872,2886.2,2885.1,0.86647]
[1645161146167,0.0051872,2886.2,2885.2,1.47759155]
[1645161146367,0.87180507,2886.1,2885.2,1.47759155]
[1645161146568,0.0051872,2886.0,2885.2,1.47759155]
[1645161147616,0.0051872,2886.0,2885.2,5.84407155]
[1645161147817,0.0051872,2886.0,2885.3,1.47759155]
[1645161148618,0.00320252,2885.8,2885.3,1.47759155]
[1645161149717,0.0051872,2886.0,2885.5,0.86658]
[1645161149921,0.00320257,2885.7,2885.5,0.86658]
[1645161150765,0.0051872,2886.0,2885.5,0.86658]
[1645161150966,0.00320255,2885.7,2885.5,0.86658]
[1645161151564,0.00320255,2885.7,2885.5,0.89324611]
[1645161151967,0.0051872,2886.0,2885.5,0.89324611]
[1645161152170,0.00320255,2885.7,2885.5,0.89324611]
[1645161153169,0.0051872,2886.0,2885.5,0.89324611]
[1645161153369,0.00319035,2885.7,2885.5,0.89324611]
[1645161154412,0.0051872,2886.0,2885.5,0.89324611]
[1645161154609,0.00319035,2885.7,2885.5,0.89324611]
[1645161155510,0.0051872,2886.0,2885.5,0.89324611]
[1645161155711,0.00319035,2885.7,2885.5,0.89324611]
[1645161156813,0.0051872,2886.0,2885.5,0.89324611]
[1645161157014,0.00320255,2885.7,2885.5,0.89324611]
[1645161158015,0.0051872,2886.0,2885.5,0.89324611]
[1645161158272,0.00320255,2885.7,2885.5,0.89324611]
[1645161159077,0.00522259,2886.0,2885.7,0.00693801]